fUST/lending_fUST_20250218
["ID","MTS","AMOUNT","RATE_DAILY","PERIOD"]
[353455080,1739844639849,-984.0,0.00013698,2]
[353455081,1739844639859,-500.0,0.00013698,2]
[353455082,1739844639869,-500.0,0.00013698,2]
[353455083,1739844639878,-500.0,0.00013698,2]
[353455084,1739844639888,-500.0,0.00013698,2]
[353455085,1739844639898,-500.0,0.00013698,2]
[353455086,1739844639908,-500.0,0.00013698,2]
[353455087,1739844639917,-500.0,0.00013698,2]
[353455088,1739844639927,-573.49,0.00013698,2]
[353455089,1739844639936,-500.0,0.00013698,2]
[353455090,1739844639946,-500.0,0.00013698,2]
[353455091,1739844639955,-500.0,0.00013698,2]
[353455092,1739844639966,-434.12483924,0.00013698,2]
[353455093,1739844639976,-501.47787424,0.00013698,2]
[353455094,1739844639985,-500.0,0.00013698,2]
[353455095,1739844639995,-1164.64,0.00013698,2]
[353455096,1739844640005,-500.0,0.00013698,2]
[353455097,1739844640015,-1705.08,0.00013698,2]
[353455098,1739844640025,-3100.61,0.00013698,2]
[353455099,1739844640035,-3100.61,0.00013698,2]
[353455100,1739844640045,-3100.61,0.00013698,2]
[353455101,1739844640055,-3100.61,0.00013698,2]
[353455102,1739844640064,-501.23162237,0.00013698,2]
[353455103,1739844640075,-175.428824,0.00013699,2]
[353455104,1739844640085,-230.39525859,0.00013699,2]
[353455105,1739844640094,-202.08214311,0.00013763,2]
[353455106,1739844640104,-3100.61,0.00013778,2]
[353455107,1739844640113,-3100.61,0.00013779,2]
[353455108,1739844640123,-3100.61,0.00013779,2]
[353455109,1739844640132,-500.0,0.0001378,2]
[353455110,1739844640144,-500.0,0.0001378,2]
[353455111,1739844640153,-500.0,0.0001378,2]
[353455112,1739844640163,-500.0,0.0001378,2]
[353455113,1739844640173,-500.0,0.0001378,2]
[353455114,1739844640183,-500.0,0.0001378,2]
[353455115,1739844640192,-500.0,0.0001378,2]
[353455116,1739844640202,-500.0,0.0001378,2]
[353455117,1739844640211,-500.0,0.0001378,2]
[353455118,1739844640221,-500.0,0.0001378,2]
[353455119,1739844640231,-500.0,0.0001378,2]
[353455120,1739844640241,-500.0,0.0001378,2]
[353455121,1739844640251,-623.6134294,0.0001378,2]
[353455122,1739844640260,-635.83316996,0.0001378,2]
[353455123,1739844640269,-503.9596816,0.0001378,2]
[353455125,1739844640278,-500.0,0.0001378,2]
[353455126,1739844640287,-500.0,0.0001378,2]
[353455127,1739844640296,-543.84,0.0001378,2]
[353455128,1739844640306,-674.84,0.0001378,2]
[353455129,1739844640315,-1459.51,0.0001378,2]
[353455130,1739844640327,-500.0,0.0001378,2]
[353455132,1739844640336,-500.0,0.0001378,2]
[353455133,1739844640347,-626.06,0.0001378,2]
[353455134,1739844640356,-500.0,0.0001378,2]
[353455135,1739844640366,-2558.07,0.0001378,2]
[353455136,1739844640375,-500.0,0.0001378,2]
[353455137,1739844640385,-500.0,0.0001378,2]
[353455138,1739844640395,-500.0,0.0001378,2]
[353455139,1739844640404,-383.43461363,0.0001378,2]
[353455140,1739844640413,-500.0,0.0001378,2]
[353455141,1739844640422,-735.31,0.0001378,2]
[353455142,1739844640432,-500.0,0.0001378,2]
[353455143,1739844640441,-1246.87,0.0001378,2]
[353455144,1739844640450,-500.0,0.0001378,2]
[353455145,1739844640459,-9044.36,0.0001378,2]
[353455146,1739844640468,-496.56,0.0001378,2]
[353455147,1739844640478,-737.11,0.0001378,2]
[353455148,1739844640487,-500.0,0.0001378,2]
[353455150,1739844640497,-500.0,0.0001378,2]
[353455151,1739844640506,-500.0,0.0001378,2]
[353455152,1739844640516,-500.0,0.0001378,2]
[353455153,1739844640525,-500.0,0.0001378,2]
[353455154,1739844640534,-500.0,0.0001378,2]
[353455155,1739844640545,-984.0,0.0001378,2]
[353455156,1739844640554,-500.0,0.0001378,2]
[353455157,1739844640563,-204.93152875,0.0001378,2]
[353455158,1739844640573,-500.0,0.0001378,2]
[353455159,1739844640582,-500.0,0.0001378,2]
[353455160,1739844640591,-500.0,0.0001378,2]
[353455161,1739844640601,-500.0,0.0001378,2]
[353455162,1739844640610,-573.49,0.0001378,2]
[353455163,1739844640619,-501.58154185,0.0001378,2]
[353455164,1739844640628,-500.0,0.0001378,2]
[353455165,1739844640638,-500.0,0.0001378,2]
[353455166,1739844640646,-500.0,0.0001378,2]
[353455167,1739844640656,-1164.64,0.0001378,2]
[353455168,1739844640665,-466.34678386,0.0001378,2]
[353455169,1739844640674,-1002.39973791,0.0001378,2]
[353455170,1739844640689,-702.68026209,0.0001378,2]
[353455171,1739844640698,-551.745,0.00013802,2]
[353455172,1739844640707,-3100.61,0.00013862,2]
[353455173,1739844640717,-3100.61,0.00013862,2]
[353455174,1739844640726,-150.96179878,0.00013863,2]
[353455175,1739844640735,-500.0,0.00013863,2]
[353455176,1739844640745,-500.0,0.00013863,2]
[353455179,1739844640755,-483.177149,0.00013863,2]
[353455180,1739844640860,-500.0,0.00013863,2]
[353455181,1739844640869,-500.0,0.00013863,2]
[353455182,1739844640879,-500.0,0.00013863,2]
[353455183,1739844640888,-500.0,0.00013863,2]
[353455184,1739844640897,-500.0,0.00013863,2]
[353455185,1739844640907,-500.0,0.00013863,2]
[353455186,1739844640916,-500.0,0.00013863,2]
[353455187,1739844640926,-500.0,0.00013863,2]
[353455188,1739844640935,-500.0,0.00013863,2]
[353455189,1739844640945,-543.84,0.00013863,2]
[353455190,1739844640954,-674.84,0.00013863,2]
[353455191,1739844640964,-1459.51,0.00013863,2]
[353455192,1739844640975,-500.0,0.00013863,2]
[353455193,1739844640984,-500.0,0.00013863,2]
[353455194,1739844640994,-626.06,0.00013863,2]
[353455195,1739844641003,-500.0,0.00013863,2]
[353455196,1739844641013,-2558.07,0.00013863,2]
[353455197,1739844641022,-500.0,0.00013863,2]
[353455198,1739844641032,-500.0,0.00013863,2]
[353455199,1739844641041,-500.0,0.00013863,2]
[353455200,1739844641052,-500.0,0.00013863,2]
[353455201,1739844641061,-735.31,0.00013863,2]
[353455202,1739844641071,-500.0,0.00013863,2]
[353455203,1739844641081,-1246.87,0.00013863,2]
[353455204,1739844641090,-500.0,0.00013863,2]
[353455205,1739844641099,-9044.36,0.00013863,2]
[353455206,1739844641109,-737.11,0.00013863,2]
[353455207,1739844641118,-500.0,0.00013863,2]
[353455208,1739844641128,-500.0,0.00013863,2]
[353455209,1739844641137,-500.0,0.00013863,2]
[353455210,1739844641146,-500.0,0.00013863,2]
[353455211,1739844641155,-500.0,0.00013863,2]
[353455212,1739844641164,-500.0,0.00013863,2]
[353455213,1739844641173,-984.0,0.00013863,2]
[353455214,1739844641182,-500.0,0.00013863,2]
[353455215,1739844641191,-500.0,0.00013863,2]
[353455216,1739844641200,-500.0,0.00013863,2]
[353455217,1739844641210,-500.0,0.00013863,2]
[353455218,1739844641219,-500.0,0.00013863,2]
[353455219,1739844641228,-573.49,0.00013863,2]
[353455220,1739844641237,-500.0,0.00013863,2]
[353455221,1739844641246,-500.0,0.00013863,2]
[353455222,1739844641255,-500.0,0.00013863,2]
[353455223,1739844641264,-1164.64,0.00013863,2]
[353455224,1739844641274,-1705.08,0.00013863,2]
[353455225,1739844641283,-3100.61,0.00013942,2]
[353455226,1739844641292,-3100.61,0.00013944,2]
[353455227,1739844641301,-3100.61,0.00013944,2]
[353455228,1739844641310,-500.0,0.00013945,2]
[353455229,1739844641320,-500.0,0.00013945,2]
[353455230,1739844641330,-500.0,0.00013945,2]
[353455231,1739844641339,-500.0,0.00013945,2]
[353455232,1739844641348,-500.0,0.00013945,2]
[353455233,1739844641357,-500.0,0.00013945,2]
[353455234,1739844641366,-500.0,0.00013945,2]
[353455235,1739844641375,-500.0,0.00013945,2]
[353455236,1739844641385,-500.0,0.00013945,2]
[353455237,1739844641394,-500.0,0.00013945,2]
[353455238,1739844641404,-500.0,0.00013945,2]
[353455239,1739844641413,-543.84,0.00013945,2]
[353455240,1739844641423,-674.84,0.00013945,2]
[353455241,1739844641432,-1459.51,0.00013945,2]
[353455242,1739844641441,-500.0,0.00013945,2]
[353455243,1739844641451,-500.0,0.00013945,2]
[353455244,1739844641460,-626.06,0.00013945,2]
[353455245,1739844641469,-500.0,0.00013945,2]
[353455246,1739844641478,-2558.07,0.00013945,2]
[353455247,1739844641487,-500.0,0.00013945,2]
[353455248,1739844641497,-500.0,0.00013945,2]
[353455249,1739844641507,-295.10966196,0.00013945,2]
[353455250,1739844641517,-735.31,0.00013945,2]
[353455251,1739844641526,-1246.87,0.00013945,2]
[353455252,1739844641536,-500.0,0.00013945,2]
[353455253,1739844641545,-9044.36,0.00013945,2]
[353455254,1739844641554,-737.11,0.00013945,2]
[353455255,1739844641563,-500.0,0.00013945,2]
[353455256,1739844641572,-500.0,0.00013945,2]
[353455257,1739844641582,-500.0,0.00013945,2]
[353455258,1739844641591,-500.0,0.00013945,2]
[353455259,1739844641600,-500.0,0.00013945,2]
[353455260,1739844641609,-500.0,0.00013945,2]
[353455261,1739844641618,-984.0,0.00013945,2]
[353455262,1739844641627,-500.0,0.00013945,2]
[353455263,1739844641636,-500.0,0.00013945,2]
[353455264,1739844641646,-500.0,0.00013945,2]
[353455265,1739844641655,-500.0,0.00013945,2]
[353455266,1739844641664,-500.0,0.00013945,2]
[353455267,1739844641673,-573.49,0.00013945,2]
[353455268,1739844641683,-500.0,0.00013945,2]
[353455269,1739844641692,-500.0,0.00013945,2]
[353455270,1739844641701,-1164.64,0.00013945,2]
[353455271,1739844641711,-1705.08,0.00013945,2]
[353455272,1739844641720,-3100.61,0.00014026,2]
[353455273,1739844641730,-3100.61,0.00014026,2]
[353455274,1739844641739,-500.0,0.00014027,2]
[353455275,1739844641748,-500.0,0.00014027,2]
[353455276,1739844641757,-452.35262053,0.00014027,2]
[353455277,1739844641766,-500.0,0.00014027,2]
[353455278,1739844641775,-500.0,0.00014027,2]
[353455279,1739844641785,-500.0,0.00014027,2]
[353455280,1739844641794,-500.0,0.00014027,2]
[353455281,1739844641803,-500.0,0.00014027,2]
[353455282,1739844641813,-500.0,0.00014027,2]
[353455283,1739844641822,-500.0,0.00014027,2]
[353455284,1739844641833,-500.0,0.00014027,2]
[353455285,1739844641842,-543.84,0.00014027,2]
[353455286,1739844641851,-674.84,0.00014027,2]
[353455287,1739844641861,-1459.51,0.00014027,2]
[353455288,1739844641870,-500.0,0.00014027,2]
[353455289,1739844641879,-500.0,0.00014027,2]
[353455290,1739844641888,-626.06,0.00014027,2]
[353455291,1739844641898,-500.0,0.00014027,2]
[353455292,1739844641907,-2558.07,0.00014027,2]
[353455293,1739844641916,-500.0,0.00014027,2]
[353455294,1739844641926,-500.0,0.00014027,2]
[353455295,1739844641935,-735.31,0.00014027,2]
[353455296,1739844641944,-1246.87,0.00014027,2]
[353455297,1739844641953,-500.0,0.00014027,2]
[353455298,1739844641963,-9044.36,0.00014027,2]
[353455299,1739844641975,-737.11,0.00014027,2]
[353455300,1739844641984,-500.0,0.00014027,2]
[353455301,1739844641993,-500.0,0.00014027,2]
[353455302,1739844642003,-500.0,0.00014027,2]
[353455303,1739844642014,-500.0,0.00014027,2]
[353455304,1739844642023,-500.0,0.00014027,2]
[353455305,1739844642032,-500.0,0.00014027,2]
[353455306,1739844642042,-984.0,0.00014027,2]
[353455307,1739844642052,-153.12180874,0.00014027,2]
[353455308,1739844642061,-500.0,0.00014027,2]
[353455309,1739844642071,-500.0,0.00014027,2]
[353455310,1739844642081,-500.0,0.00014027,2]
[353455311,1739844642091,-500.0,0.00014027,2]
[353455312,1739844642100,-573.49,0.00014027,2]
[353455313,1739844642109,-500.0,0.00014027,2]
[353455314,1739844642119,-500.0,0.00014027,2]
[353455315,1739844642128,-1164.64,0.00014027,2]
[353455316,1739844642138,-1705.08,0.00014027,2]
[353455317,1739844642147,-500.0,0.00014063,2]
[353455318,1739844642156,-396.0,0.00014094,2]
[353455319,1739844642165,-3100.61,0.00014108,2]
[353455320,1739844642175,-3100.61,0.00014108,2]
[353455321,1739844642184,-500.0,0.00014109,2]
[353455322,1739844642193,-500.0,0.00014109,2]
[353455323,1739844642202,-500.0,0.00014109,2]
[353455324,1739844642212,-602.68775103,0.00014109,2]
[353455325,1739844642222,-574.36231562,0.00014109,2]
[353455326,1739844642231,-500.0,0.00014109,2]
[353455327,1739844642240,-380.41878562,0.00014109,2]
[353455328,1739844642249,-643.14510151,0.00014109,2]
[353455329,1739844642259,-500.0,0.00014109,2]
[353455330,1739844642268,-500.0,0.00014109,2]
[353455331,1739844642277,-543.84,0.00014109,2]
[353455332,1739844642286,-674.84,0.00014109,2]
[353455333,1739844642295,-1459.51,0.00014109,2]
[353455334,1739844642304,-500.0,0.00014109,2]
[353455335,1739844642313,-500.0,0.00014109,2]
[353455336,1739844642323,-626.06,0.00014109,2]
[353455337,1739844642333,-500.0,0.00014109,2]
[353455338,1739844642342,-2558.07,0.00014109,2]
[353455339,1739844642351,-621.54699511,0.00014109,2]
[353455340,1739844642360,-500.0,0.00014109,2]
[353455341,1739844642369,-735.31,0.00014109,2]
[353455342,1739844642378,-1246.87,0.00014109,2]
[353455343,1739844642387,-500.0,0.00014109,2]
[353455344,1739844642396,-9044.36,0.00014109,2]
[353455345,1739844642405,-737.11,0.00014109,2]
[353455346,1739844642415,-500.0,0.00014109,2]
[353455347,1739844642424,-500.0,0.00014109,2]
[353455348,1739844642434,-500.0,0.00014109,2]
[353455349,1739844642443,-500.0,0.00014109,2]
[353455350,1739844642454,-582.9296949,0.00014109,2]
[353455351,1739844642463,-500.0,0.00014109,2]
[353455352,1739844642472,-984.0,0.00014109,2]
[353455353,1739844642481,-500.0,0.00014109,2]
[353455354,1739844642491,-500.0,0.00014109,2]
[353455355,1739844642500,-500.0,0.00014109,2]
[353455356,1739844642509,-500.0,0.00014109,2]
[353455357,1739844642519,-573.49,0.00014109,2]
[353455358,1739844642528,-500.0,0.00014109,2]
[353455359,1739844642537,-500.0,0.00014109,2]
[353455360,1739844642547,-1705.08,0.00014109,2]
[353455361,1739844642555,-500.0,0.00014163,2]
[353455362,1739844642565,-3100.61,0.0001419,2]
[353455363,1739844642574,-3100.61,0.0001419,2]
[353455364,1739844642584,-500.0,0.00014191,2]
[353455365,1739844642594,-500.0,0.00014191,2]
[353455366,1739844642603,-500.0,0.00014191,2]
[353455367,1739844642612,-500.0,0.00014191,2]
[353455368,1739844642621,-500.0,0.00014191,2]
[353455369,1739844642630,-500.0,0.00014191,2]
[353455370,1739844642639,-543.84,0.00014191,2]
[353455371,1739844642648,-674.84,0.00014191,2]
[353455372,1739844642657,-1459.51,0.00014191,2]
[353455373,1739844642667,-500.0,0.00014191,2]
[353455374,1739844642676,-500.0,0.00014191,2]
[353455375,1739844642685,-626.06,0.00014191,2]
[353455376,1739844642695,-500.0,0.00014191,2]
[353455377,1739844642704,-2558.07,0.00014191,2]
[353455378,1739844642713,-500.0,0.00014191,2]
[353455379,1739844642722,-735.31,0.00014191,2]
[353455380,1739844642732,-1246.87,0.00014191,2]
[353455381,1739844642741,-500.0,0.00014191,2]
[353455382,1739844642751,-9044.36,0.00014191,2]
[353455383,1739844642760,-737.11,0.00014191,2]
[353455384,1739844642769,-500.0,0.00014191,2]
[353455385,1739844642778,-500.0,0.00014191,2]
[353455386,1739844642788,-500.0,0.00014191,2]
[353455387,1739844642797,-500.0,0.00014191,2]
[353455388,1739844642806,-500.0,0.00014191,2]
[353455389,1739844642815,-984.0,0.00014191,2]
[353455390,1739844642824,-500.0,0.00014191,2]
[353455391,1739844642834,-500.0,0.00014191,2]
[353455392,1739844642843,-500.0,0.00014191,2]
[353455393,1739844642852,-500.0,0.00014191,2]
[353455394,1739844642865,-573.49,0.00014191,2]
[353455395,1739844642882,-500.0,0.00014191,2]
[353455396,1739844642893,-500.0,0.00014191,2]
[353455397,1739844642903,-1705.08,0.00014191,2]
[353455398,1739844642912,-384.5276457,0.0001421,2]
[353455399,1739844642922,-500.0,0.00014263,2]
[353455400,1739844642931,-3100.61,0.00014272,2]
[353455401,1739844642940,-3100.61,0.00014272,2]
[353455402,1739844642951,-3100.61,0.00014272,2]
[353455404,1739844642960,-3100.61,0.00014272,2]
[353455405,1739844642974,-3100.61,0.00014272,2]
[353455406,1739844642983,-3100.63,0.00014272,2]
[353455407,1739844642992,-500.0,0.00014273,2]
[353455408,1739844643001,-478.89622271,0.00014273,2]
[353455409,1739844643012,-500.0,0.00014273,2]
[353455410,1739844643021,-500.0,0.00014273,2]
[353455411,1739844643031,-500.0,0.00014273,2]
[353455412,1739844643041,-500.0,0.00014273,2]
[353455413,1739844643051,-543.84,0.00014273,2]
[353455414,1739844643061,-674.84,0.00014273,2]
[353455415,1739844643070,-1459.51,0.00014273,2]
[353455416,1739844643080,-500.0,0.00014273,2]
[353455417,1739844643089,-500.0,0.00014273,2]
[353455418,1739844643098,-626.06,0.00014273,2]
[353455419,1739844643107,-500.0,0.00014273,2]
[353455420,1739844643116,-2558.07,0.00014273,2]
[353455421,1739844643125,-500.0,0.00014273,2]
[353455422,1739844643135,-735.31,0.00014273,2]
[353455423,1739844643144,-1246.87,0.00014273,2]
[353455424,1739844643154,-500.0,0.00014273,2]
[353455425,1739844643163,-9044.36,0.00014273,2]
[353455427,1739844643172,-737.11,0.00014273,2]
[353455429,1739844643181,-500.0,0.00014273,2]
[353455430,1739844643190,-500.0,0.00014273,2]
[353455431,1739844643199,-500.0,0.00014273,2]
[353455432,1739844643208,-500.0,0.00014273,2]
[353455433,1739844643218,-500.0,0.00014273,2]
[353455434,1739844643227,-984.0,0.00014273,2]
[353455435,1739844643236,-500.0,0.00014273,2]
[353455436,1739844643245,-500.0,0.00014273,2]
[353455437,1739844643254,-500.0,0.00014273,2]
[353455438,1739844643263,-500.0,0.00014273,2]
[353455439,1739844643386,-573.49,0.00014273,2]
[353455440,1739844643395,-500.0,0.00014273,2]
[353455441,1739844643405,-500.0,0.00014273,2]
[353455442,1739844643415,-1705.08,0.00014273,2]
[353455443,1739844643424,-500.0,0.00014356,2]
[353455444,1739844643433,-500.0,0.00014356,2]
[353455445,1739844643443,-500.0,0.00014356,2]
[353455446,1739844643453,-500.0,0.00014356,2]
[353455447,1739844643462,-500.0,0.00014356,2]
[353455448,1739844643472,-543.84,0.00014356,2]
[353455449,1739844643481,-674.84,0.00014356,2]
[353455450,1739844643490,-1459.51,0.00014356,2]
[353455451,1739844643499,-500.0,0.00014356,2]
[353455452,1739844643508,-500.0,0.00014356,2]
[353455453,1739844643518,-626.06,0.00014356,2]
[353455454,1739844643527,-500.0,0.00014356,2]
[353455455,1739844643537,-2558.07,0.00014356,2]
[353455456,1739844643546,-500.0,0.00014356,2]
[353455457,1739844643555,-735.31,0.00014356,2]
[353455458,1739844643564,-1246.87,0.00014356,2]
[353455459,1739844643573,-500.0,0.00014356,2]
[353455460,1739844643583,-9044.36,0.00014356,2]
[353455461,1739844643592,-737.11,0.00014356,2]
[353455462,1739844643602,-500.0,0.00014356,2]
[353455463,1739844643611,-500.0,0.00014356,2]
[353455464,1739844643620,-500.0,0.00014356,2]
[353455465,1739844643629,-500.0,0.00014356,2]
[353455466,1739844643639,-500.0,0.00014356,2]
[353455467,1739844643648,-984.0,0.00014356,2]
[353455468,1739844643657,-500.0,0.00014356,2]
[353455469,1739844643667,-500.0,0.00014356,2]
[353455470,1739844643676,-500.0,0.00014356,2]
[353455471,1739844643686,-500.0,0.00014356,2]
[353455472,1739844643695,-573.49,0.00014356,2]
[353455473,1739844643704,-500.0,0.00014356,2]
[353455474,1739844643714,-500.0,0.00014356,2]
[353455475,1739844643723,-1705.08,0.00014356,2]
[353455476,1739844643732,-500.0,0.00014363,2]
[353455477,1739844643741,-150.074,0.00014368,2]
[353455478,1739844643751,-150.0,0.00014368,2]
[353455479,1739844643760,-150.039,0.00014374,2]
[353455480,1739844643769,-150.0,0.00014374,2]
[353455481,1739844643778,-1971.0,0.00014374,2]
[353455482,1739844643788,-538.0,0.00014374,2]
[353455483,1739844643798,-2289.0,0.00014374,2]
[353455484,1739844643807,-1002.90059045,0.00014406,2]
[353455485,1739844643816,-500.0,0.00014438,2]
[353455486,1739844643826,-500.0,0.00014438,2]
[353455487,1739844643836,-500.0,0.00014438,2]
[353455488,1739844643846,-500.0,0.00014438,2]
[353455489,1739844643855,-493.32594891,0.00014438,2]
[353455490,1739844643865,-543.84,0.00014438,2]
[353455491,1739844643874,-674.84,0.00014438,2]
[353455492,1739844643883,-1459.51,0.00014438,2]
[353455493,1739844643893,-500.0,0.00014438,2]
[353455494,1739844643903,-500.0,0.00014438,2]
[353455495,1739844643912,-626.06,0.00014438,2]
[353455496,1739844643921,-500.0,0.00014438,2]
[353455497,1739844643931,-2558.07,0.00014438,2]
[353455498,1739844643940,-222.03699798,0.00014438,2]
[353455499,1739844643950,-735.31,0.00014438,2]
[353455500,1739844643960,-1246.87,0.00014438,2]
[353455501,1739844643973,-500.0,0.00014438,2]
[353455502,1739844643983,-9044.36,0.00014438,2]
[353455503,1739844643992,-737.11,0.00014438,2]
[353455504,1739844644002,-500.0,0.00014438,2]
[353455505,1739844644012,-500.0,0.00014438,2]
[353455506,1739844644022,-500.0,0.00014438,2]
[353455507,1739844644031,-268.74610312,0.00014438,2]
[353455508,1739844644041,-500.0,0.00014438,2]
[353455509,1739844644050,-984.0,0.00014438,2]
[353455510,1739844644060,-500.0,0.00014438,2]
[353455511,1739844644069,-500.0,0.00014438,2]
[353455512,1739844644079,-500.0,0.00014438,2]
[353455513,1739844644088,-500.0,0.00014438,2]
[353455514,1739844644098,-573.49,0.00014438,2]
[353455515,1739844644107,-500.0,0.00014438,2]
[353455516,1739844644116,-500.0,0.00014438,2]
[353455517,1739844644124,-1705.08,0.00014438,2]
[353455518,1739844644134,-500.0,0.00014463,2]
[353455519,1739844644143,-2280.55,0.0001449,2]
[353455520,1739844644153,-390351.9262041,0.000145,2]
[353455521,1739844644222,-1350.00000001,0.000145,2]
[353455522,1739844644253,-937.0971199,0.000145,2]
[353455523,1739844644265,-10772.73199828,0.000145,2]
[353455524,1739844644278,-5923.04810749,0.000145,2]
[353455525,1739844644289,-2098.09279711,0.000145,2]
[353455526,1739844644300,-44180.4624564,0.000145,2]
[353455527,1739844644311,-5640.0000006,0.000145,2]
[353455528,1739844644322,-2339.9999998,0.000145,2]
[353455529,1739844644338,-2597.46,0.000145,2]
[353455542,1739844646625,-500.0,0.00013698,2]
[353455543,1739844646634,-500.0,0.0001378,2]
[353455544,1739844646643,-312.57601629,0.00013863,2]
[353455545,1739844646653,-15793.45148498,0.000145,2]
[353455546,1739844646730,-3241.78482194,0.000145,2]
[353455553,1739845631114,-281.20317066,0.00010578,2]
[353455554,1739845638165,-118.79682934,0.00010578,2]
[353455555,1739845638188,-400.0,0.00010685,2]
[353455556,1739845638214,-219.38014203,0.00012488,2]
[353455557,1739845646091,-1375.11191533,0.00012488,2]
[353455558,1739845653091,-3776.1723561,0.00012363,2]
[353455559,1739845653116,-23144.47229944,0.00012488,2]
[353455560,1739845653139,-500.0,0.00012664,2]
[353455561,1739845653164,-166.0,0.0001278,2]
[353455562,1739845653188,-500.0,0.00013697,2]
[353455563,1739845653213,-500.0,0.00013697,2]
[353455564,1739845653238,-500.0,0.00013697,2]
[353455565,1739845653262,-500.0,0.00013697,2]
[353455566,1739845653284,-500.0,0.00013697,2]
[353455567,1739845653309,-215.19201551,0.00013697,2]
[353455570,1739845716818,1039.66185671,0.00016772,90]
[353455593,1739845832868,-505.47806135,0.00012664,2]
[353455595,1739845832879,-160.0,0.0001325,3]
[353455596,1739845832891,-160.46865084,0.0001325,5]
[353455597,1739845832901,-300.0,0.00013696,2]
[353455598,1739845832911,-284.80798449,0.00013697,2]
[353455599,1739845832922,-500.0,0.00013697,2]
[353455600,1739845832933,-500.0,0.00013697,2]
[353455601,1739845832944,-500.0,0.00013697,2]
[353455602,1739845832955,-500.0,0.00013697,2]
[353455603,1739845832966,-500.0,0.00013697,2]
[353455604,1739845833138,-500.0,0.00013697,2]
[353455605,1739845833148,-500.0,0.00013697,2]
[353455606,1739845833159,-500.0,0.00013697,2]
[353455607,1739845833169,-592.21900959,0.00013697,2]
[353455608,1739845833180,-500.0,0.00013697,2]
[353455609,1739845833190,-500.0,0.00013697,2]
[353455610,1739845833200,-175.70040525,0.00013697,2]
[353455611,1739845833210,-512.51393256,0.00013697,2]
[353455612,1739845833220,-500.0,0.00013697,2]
[353455613,1739845833230,-500.0,0.00013697,2]
[353455614,1739845833239,-500.0,0.00013697,2]
[353455615,1739845833249,-604.26007432,0.00013697,2]
[353455616,1739845833258,-506.36729509,0.00013698,2]
[353455617,1739845833270,-504.9742143,0.00013698,2]
[353455618,1739845833281,-500.0,0.00013698,2]
[353455619,1739845833291,-500.0,0.00013698,2]
[353455620,1739845833302,-500.0,0.00013698,2]
[353455621,1739845833313,-500.0,0.00013698,2]
[353455622,1739845833324,-500.0,0.00013698,2]
[353455623,1739845833334,-596.54,0.00013698,2]
[353455624,1739845833344,-500.0,0.00013698,2]
[353455625,1739845833354,-500.0,0.00013698,2]
[353455626,1739845833364,-503.69645999,0.00013698,2]
[353455627,1739845833375,-233.21493708,0.00013698,2]
[353455628,1739845833389,-500.0,0.00013698,2]
[353455629,1739845833399,-500.0,0.00013698,2]
[353455630,1739845833409,-500.0,0.00013698,2]